[Event "European Rapid Championship 2021"]
[Site "Katowice"]
[Date "2021.12.19"]
[Round "9.2"]
[White "Kowalski, Igor"]
[Black "Kukula, Pawel"]
[Result "1-0"]
[ECO "A48"]
[WhiteElo "2295"]
[BlackElo "2088"]
[Annotator "NA"]
[PlyCount "91"]
[EventDate "2021.12.18"]
[EventType "swiss"]
[EventCountry "POL"]
[SourceTitle "playchess.com"]
[Source "ChessBase"]
[SourceQuality "1"]
[TimeControl "900+10"]

1. d4 {[%emt 0:00:02]} Nf6 {[%emt 0:00:02]} 2. Nf3 {[%emt 0:00:02]} g6 {
[%emt 0:00:16]} 3. Nc3 {[%emt 0:00:02]} d5 {[%emt 0:00:16]} 4. Bf4 {[%emt 0:00:
02]} c6 {[%emt 0:00:06]} 5. e3 {[%emt 0:00:02]} Bg7 {[%emt 0:00:06]} 6. Be2 {
[%emt 0:00:06]} O-O {[%emt 0:00:12]} 7. h4 {[%emt 0:00:02]} h5 {[%emt 0:00:45]}
8. Ne5 {[%emt 0:00:05]} Nbd7 {[%emt 0:00:20]} 9. f3 {[%emt 0:00:28]} Nxe5 {
[%emt 0:01:34]} 10. Bxe5 {[%emt 0:00:03]} Nd7 {[%emt 0:01:34]} 11. Bxg7 {
[%emt 0:00:10]} Kxg7 {[%emt 0:00:02]} 12. g4 {[%emt 0:00:03]} Nf6 {[%emt 0:00:
08]} 13. gxh5 {[%emt 0:02:57]} Nxh5 {[%emt 0:00:07]} 14. Qd2 {[%emt 0:00:10]}
Ng3 {[%emt 0:01:28]} 15. Rh2 {[%emt 0:00:42]} Qd6 {[%emt 0:00:14]} 16. Bd3 {
[%emt 0:00:11]} Rh8 {[%emt 0:00:06]} 17. O-O-O {[%emt 0:01:09]} a5 {[%emt 0:02:
01]} 18. Rg1 {[%emt 0:00:30]} a4 {[%emt 0:00:04]} 19. f4 {[%emt 0:03:49]} Nf5 {
[%emt 0:03:42]} 20. h5 {[%emt 0:00:09]} Bd7 {[%emt 0:01:54]} 21. hxg6 {[%emt 0:
00:48]} fxg6 {[%emt 0:00:14]} 22. Rxh8 {[%emt 0:00:31]} Rxh8 {[%emt 0:00:03]}
23. Nxa4 {[%emt 0:00:03]} Qf6 {[%emt 0:00:38]} 24. Nc5 {[%emt 0:03:55]} Bc8 {
[%emt 0:00:13]} 25. b3 {[%emt 0:02:01]} Rh3 {[%emt 0:00:48]} 26. Bxf5 {[%emt 0:
00:31]} Bxf5 {[%emt 0:00:52]} 27. Nxb7 {[%emt 0:00:13]} Qh4 {[%emt 0:00:05]}
28. Rg2 {[%emt 0:00:45]} Be4 {[%emt 0:00:08]} 29. Re2 {[%emt 0:00:03]} Rh1+ {
[%emt 0:00:29]} 30. Kb2 {[%emt 0:00:01]} Qg3 {[%emt 0:00:10]} 31. Qb4 {[%emt 0:
00:09]} Kf8 {[%emt 0:00:39]} 32. Nd8 {[%emt 0:00:19]} Qg1 {[%emt 0:00:06]} 33.
Ka3 {[%emt 0:00:07]} Qc1+ {[%emt 0:00:33]} 34. Ka4 {[%emt 0:00:01]} Qf1 {
[%emt 0:00:17]} 35. Rd2 {[%emt 0:00:19]} Qa6+ {[%emt 0:00:24]} 36. Qa5 {
[%emt 0:00:01]} Qc8 {[%emt 0:00:06]} 37. Qb6 {[%emt 0:00:04]} Qa8+ {[%emt 0:00:
04]} 38. Kb4 {[%emt 0:00:00]} Qxa2 {[%emt 0:00:09]} 39. Nxc6 {[%emt 0:00:05]}
Ra1 {[%emt 0:00:11]} 40. Qd8+ {[%emt 0:00:11]} Kg7 {[%emt 0:00:05]} 41. Qxe7+ {
[%emt 0:00:04]} Kg8 {[%emt 0:00:01]} 42. Qe8+ {[%emt 0:00:30]} Kg7 {[%emt 0:00:
01]} 43. Rh2 {[%emt 0:00:14]} Qa3+ {[%emt 0:00:10]} 44. Kc3 {[%emt 0:00:01]}
Ra2 {[%emt 0:00:54]} 45. Qh8+ {[%emt 0:00:04]} Kf7 {[%emt 0:00:01]} 46. Rh7+ {
[%emt 0:00:01]} 1-0

[Event "European Rapid Championship 2021"]
[Site "Katowice"]
[Date "2021.12.19"]
[Round "9.3"]
[White "Bernadskiy, Vitaliy"]
[Black "Brodowski, Piotr"]
[Result "1-0"]
[ECO "B07"]
[WhiteElo "2616"]
[BlackElo "2414"]
[Annotator "ChessBase"]
[PlyCount "135"]
[EventDate "2021.12.18"]
[EventType "swiss"]
[EventCountry "POL"]
[SourceTitle "playchess.com"]
[Source "ChessBase"]
[SourceQuality "1"]
[TimeControl "900+10"]

1. e4 {[%emt 0:00:03]} d6 {[%emt 0:00:01]} 2. d4 {[%emt 0:00:01]} Nf6 {[%emt 0:
00:01]} 3. Nc3 {[%emt 0:00:01]} g6 {[%emt 0:00:01]} 4. Bg5 {[%emt 0:00:02]}
Nbd7 {[%emt 0:01:04]} 5. Qe2 {[%emt 0:00:53]} h6 {[%emt 0:00:38]} 6. Bh4 {
[%emt 0:00:06]} g5 {[%emt 0:05:28]} 7. Bg3 {[%emt 0:00:01]} e5 {[%emt 0:00:01]}
8. dxe5 {[%emt 0:00:19]} Nxe5 {[%emt 0:00:01]} 9. O-O-O {[%emt 0:00:42]} Qe7 {
[%emt 0:00:01]} 10. h4 {[%emt 0:01:40]} Bg7 {[%emt 0:00:28]} 11. hxg5 {[%emt 0:
00:02]} hxg5 {[%emt 0:00:01]} 12. Rxh8+ {[%emt 0:00:01]} Bxh8 {[%emt 0:00:00]}
13. Qd2 {[%emt 0:00:20]} Nh5 {[%emt 0:01:45]} 14. Nd5 {[%emt 0:00:02]} Qd8 {
[%emt 0:00:01]} 15. Bh2 {[%emt 0:00:42]} c6 {[%emt 0:01:05]} 16. Nc3 {[%emt 0:
01:07]} Be6 {[%emt 0:00:01]} 17. f3 {[%emt 0:01:56]} Bf6 {[%emt 0:02:32]} 18.
Qxd6 {[%emt 0:01:26]} Qxd6 {[%emt 0:00:02]} 19. Rxd6 {[%emt 0:00:02]} g4 {
[%emt 0:00:07]} 20. Bxe5 {[%emt 0:01:29]} Bxe5 {[%emt 0:00:05]} 21. Rd1 {
[%emt 0:00:02]} g3 {[%emt 0:00:56]} 22. Nge2 {[%emt 0:00:24]} Ke7 {[%emt 0:00:
03]} 23. Kd2 {[%emt 0:03:03]} f5 {[%emt 0:03:18]} 24. Ke1 {[%emt 0:00:04]} f4 {
[%emt 0:00:39]} 25. Na4 {[%emt 0:01:08]} b6 {[%emt 0:00:35]} 26. Nd4 {[%emt 0:
00:11]} Bd7 {[%emt 0:00:01]} 27. Nc3 {[%emt 0:00:30]} Nf6 {[%emt 0:00:01]} 28.
Nce2 {[%emt 0:01:05]} a5 {[%emt 0:00:23]} 29. c3 {[%emt 0:00:02]} a4 {[%emt 0:
00:05]} 30. Nc1 {[%emt 0:00:09]} a3 {[%emt 0:00:10]} 31. b3 {[%emt 0:00:53]} c5
32. Nd3 {[%emt 0:00:02]} Bc7 {[%emt 0:00:43]} 33. Ne2 {[%emt 0:00:07]} Nh5 {
[%emt 0:00:01]} 34. c4 {[%emt 0:00:02]} Be6 {[%emt 0:00:04]} 35. Nc3 {[%emt 0:
00:04]} Kf7 {[%emt 0:00:27]} 36. Kd2 {[%emt 0:00:49]} Nf6 {[%emt 0:00:08]} 37.
Kc2 {[%emt 0:00:21]} Rh8 {[%emt 0:00:06]} 38. Nb5 {[%emt 0:00:01]} Bb8 {
[%emt 0:00:00]} 39. Nxa3 {[%emt 0:00:02]} Rh2 {[%emt 0:00:01]} 40. Nb5 {
[%emt 0:00:10]} Bh3 {[%emt 0:00:10]} 41. Ne1 {[%emt 0:00:19]} Rh1 {[%emt 0:00:
14]} 42. Bd3 {[%emt 0:00:07]} Rh2 {[%emt 0:00:05]} 43. Rd2 {[%emt 0:00:05]} Rh1
{[%emt 0:00:15]} 44. Re2 {[%emt 0:00:01]} Bd7 {[%emt 0:00:07]} 45. e5 {[%emt 0:
00:11]} Bxb5 {[%emt 0:00:22]} 46. cxb5 {[%emt 0:00:15]} Ne8 {[%emt 0:00:09]}
47. Bc4+ {[%emt 0:00:10]} Ke7 {[%emt 0:00:01]} 48. Nd3 {[%emt 0:00:01]} Ng7 {
[%emt 0:00:09]} 49. Nxf4 Nf5 50. Nd5+ {[%emt 0:00:59]} Ke8 {[%emt 0:00:03]} 51.
Re4 {[%emt 0:00:29]} Nd4+ {[%emt 0:00:02]} 52. Kd3 {[%emt 0:00:24]} Nxf3 {
[%emt 0:00:32]} 53. e6 {[%emt 0:00:36]} Ne5+ {[%emt 0:00:35]} 54. Kc3 {[%emt 0:
00:01]} Rg1 {[%emt 0:00:10]} 55. Rh4 {[%emt 0:00:05]} Ng6 {[%emt 0:00:02]} 56.
Rh7 {[%emt 0:00:10]} Be5+ {[%emt 0:00:05]} 57. Kd3 {[%emt 0:00:02]} Rxg2 {
[%emt 0:00:02]} 58. Rh6 {[%emt 0:00:23]} Nf4+ {[%emt 0:00:11]} 59. Nxf4 {
[%emt 0:00:02]} Bxf4 {[%emt 0:00:01]} 60. Rh8+ {[%emt 0:00:01]} Ke7 {[%emt 0:
00:01]} 61. Rh7+ {[%emt 0:00:01]} Ke8 {[%emt 0:00:15]} 62. Ke4 {[%emt 0:00:40]}
Bg5 {[%emt 0:00:08]} 63. Kf3 {[%emt 0:00:20]} Rg1 {[%emt 0:00:13]} 64. Bd5 {
[%emt 0:00:09]} g2 {[%emt 0:00:13]} 65. Bc6+ {[%emt 0:00:04]} Kf8 {[%emt 0:00:
09]} 66. Kg4 {[%emt 0:00:17]} Be7 67. Rf7+ {[%emt 0:00:05]} Kg8 {[%emt 0:00:42]
} 68. Rxe7 {[%emt 0:00:04]} 1-0

[Event "European Rapid Championship 2021"]
[Site "Katowice"]
[Date "2021.12.19"]
[Round "9.3"]
[White "Lubczynski, Rafal"]
[Black "Brzezinski, Mateusz"]
[Result "1/2-1/2"]
[ECO "A14"]
[WhiteElo "2289"]
[BlackElo "2187"]
[Annotator "NA"]
[PlyCount "111"]
[EventDate "2021.12.18"]
[EventType "swiss"]
[EventCountry "POL"]
[SourceTitle "playchess.com"]
[Source "ChessBase"]
[SourceQuality "1"]
[TimeControl "900+10"]

1. Nf3 {[%emt 0:00:01]} Nf6 {[%emt 0:00:01]} 2. c4 {[%emt 0:00:01]} e6 {
[%emt 0:00:04]} 3. g3 {[%emt 0:00:02]} d5 {[%emt 0:00:02]} 4. Bg2 {[%emt 0:00:
01]} Be7 {[%emt 0:00:02]} 5. O-O {[%emt 0:00:02]} O-O {[%emt 0:00:01]} 6. d4 {
[%emt 0:00:02]} c5 {[%emt 0:00:10]} 7. cxd5 {[%emt 0:00:19]} exd5 {[%emt 0:00:
12]} 8. dxc5 {[%emt 0:00:07]} Bxc5 {[%emt 0:00:01]} 9. Qc2 {[%emt 0:00:03]} Be7
{[%emt 0:00:16]} 10. Rd1 {[%emt 0:00:13]} Nc6 {[%emt 0:00:37]} 11. Nc3 {
[%emt 0:00:14]} Be6 {[%emt 0:00:08]} 12. Bg5 {[%emt 0:00:34]} Qa5 {[%emt 0:00:
11]} 13. Nd4 {[%emt 0:04:59]} Nxd4 {[%emt 0:00:40]} 14. Rxd4 {[%emt 0:00:01]}
Rfd8 {[%emt 0:02:36]} 15. Qd2 {[%emt 0:03:00]} Kf8 {[%emt 0:07:11]} 16. Rd1 {
[%emt 0:03:12]} Qb6 {[%emt 0:04:46]} 17. Be3 {[%emt 0:02:37]} Qa6 {[%emt 0:00:
01]} 18. Ra4 {[%emt 0:00:16]} Qc6 {[%emt 0:00:05]} 19. Qd4 {[%emt 0:01:41]} b6
{[%emt 0:00:14]} 20. Rc1 {[%emt 0:00:10]} Qd7 {[%emt 0:00:34]} 21. Qd3 {
[%emt 0:00:15]} Rac8 {[%emt 0:00:06]} 22. Qa6 {[%emt 0:00:09]} Rc7 {[%emt 0:00:
17]} 23. Rd1 {[%emt 0:00:21]} Qc6 {[%emt 0:00:24]} 24. Qd3 {[%emt 0:00:34]} Qb7
{[%emt 0:00:03]} 25. Nb5 {[%emt 0:00:02]} Qc6 {[%emt 0:00:15]} 26. Rxa7 {
[%emt 0:00:07]} Rxa7 {[%emt 0:00:05]} 27. Nxa7 Qa4 {[%emt 0:00:12]} 28. Bxb6 {
[%emt 0:00:20]} Rb8 {[%emt 0:00:04]} 29. b3 {[%emt 0:00:08]} Qxa2 {[%emt 0:00:
07]} 30. Qe3 {[%emt 0:00:21]} Ng4 {[%emt 0:00:13]} 31. Qd4 {[%emt 0:00:02]}
Qxb3 {[%emt 0:00:01]} 32. Bc5 {[%emt 0:00:14]} Bxc5 {[%emt 0:00:30]} 33. Qxc5+
{[%emt 0:00:01]} Kg8 {[%emt 0:00:01]} 34. Rc1 {[%emt 0:00:13]} Qb6 {[%emt 0:00:
21]} 35. Qxb6 {[%emt 0:00:20]} Rxb6 {[%emt 0:00:03]} 36. Nc6 {[%emt 0:00:01]}
Kf8 {[%emt 0:00:17]} 37. Bf3 {[%emt 0:00:06]} Nf6 {[%emt 0:00:03]} 38. Kg2 {
[%emt 0:00:04]} Nd7 {[%emt 0:00:12]} 39. h4 {[%emt 0:00:22]} g6 {[%emt 0:00:05]
} 40. Rc2 {[%emt 0:00:22]} h5 {[%emt 0:00:03]} 41. Rc1 {[%emt 0:00:01]} Kg7 {
[%emt 0:00:08]} 42. Rc3 {[%emt 0:00:14]} Kf6 {[%emt 0:00:04]} 43. e3 {[%emt 0:
00:03]} Rb2 {[%emt 0:00:30]} 44. Nd4 {[%emt 0:00:14]} Ne5 {[%emt 0:00:05]} 45.
Be2 {[%emt 0:00:01]} Bg4 {[%emt 0:00:10]} 46. Bf1 Bf5 {[%emt 0:00:15]} 47. Nxf5
{[%emt 0:00:38]} Kxf5 {[%emt 0:00:04]} 48. Kg1 {[%emt 0:00:03]} Ke6 {[%emt 0:
00:23]} 49. Bg2 {[%emt 0:00:17]} Rd2 {[%emt 0:00:05]} 50. Ra3 {[%emt 0:00:09]}
Rc2 {[%emt 0:00:19]} 51. Ra6+ {[%emt 0:00:07]} Rc6 {[%emt 0:00:03]} 52. Rxc6+ {
[%emt 0:00:13]} Nxc6 {[%emt 0:00:01]} 53. Kf1 {[%emt 0:00:01]} Kd6 {[%emt 0:00:
08]} 54. Ke2 {[%emt 0:00:04]} Ne5 {[%emt 0:00:05]} 55. Kd2 {[%emt 0:00:07]} Ng4
{[%emt 0:00:03]} 56. Ke2 {[%emt 0:00:11]} 1/2-1/2

[Event "European Rapid Championship 2021"]
[Site "Katowice"]
[Date "2021.12.19"]
[Round "9.4"]
[White "Sumets, Andrey"]
[Black "Keinanen, Toivo"]
[Result "1/2-1/2"]
[ECO "D37"]
[WhiteElo "2508"]
[BlackElo "2341"]
[Annotator "ChessBase"]
[PlyCount "62"]
[EventDate "2021.12.18"]
[EventType "swiss"]
[EventCountry "POL"]
[SourceTitle "playchess.com"]
[Source "ChessBase"]
[SourceQuality "1"]
[TimeControl "900+10"]

1. d4 d5 2. c4 {[%emt 0:00:04]} e6 {[%emt 0:00:01]} 3. Nf3 {[%emt 0:00:23]} Nf6
{[%emt 0:00:00]} 4. Nc3 {[%emt 0:00:15]} Be7 {[%emt 0:00:02]} 5. cxd5 {[%emt 0:
00:04]} exd5 {[%emt 0:00:10]} 6. Qc2 {[%emt 0:00:21]} c5 {[%emt 0:03:16]} 7.
dxc5 {[%emt 0:00:11]} d4 {[%emt 0:01:26]} 8. Ne4 {[%emt 0:01:55]} O-O {[%emt 0:
00:38]} 9. Nxf6+ {[%emt 0:04:03]} Bxf6 {[%emt 0:00:01]} 10. e4 {[%emt 0:00:50]}
Nc6 {[%emt 0:03:23]} 11. a3 {[%emt 0:02:47]} Bg4 {[%emt 0:00:50]} 12. Bd3 {
[%emt 0:00:02]} Rc8 {[%emt 0:01:03]} 13. b4 {[%emt 0:01:26]} b6 {[%emt 0:00:36]
} 14. Nd2 {[%emt 0:04:05]} bxc5 {[%emt 0:00:17]} 15. bxc5 {[%emt 0:00:04]} Ne5
{[%emt 0:00:38]} 16. Nb3 {[%emt 0:00:01]} Be6 {[%emt 0:01:17]} 17. O-O {
[%emt 0:00:08]} Bxb3 {[%emt 0:01:16]} 18. Qxb3 {[%emt 0:00:01]} Rxc5 {[%emt 0:
00:01]} 19. Bd2 {[%emt 0:00:13]} Qb6 {[%emt 0:01:15]} 20. Rfb1 {[%emt 0:00:09]}
Qxb3 {[%emt 0:01:17]} 21. Rxb3 {[%emt 0:00:01]} Nxd3 {[%emt 0:00:21]} 22. Rxd3
{[%emt 0:00:01]} Rb8 {[%emt 0:00:05]} 23. Bb4 {[%emt 0:00:34]} Rc2 {[%emt 0:00:
24]} 24. Rad1 {[%emt 0:00:16]} g5 {[%emt 0:00:28]} 25. Kf1 {[%emt 0:00:35]} Rb5
{[%emt 0:00:11]} 26. R3d2 {[%emt 0:00:12]} Rc4 {[%emt 0:00:01]} 27. g3 {
[%emt 0:00:21]} g4 {[%emt 0:00:11]} 28. Bd6 {[%emt 0:00:02]} h5 {[%emt 0:00:21]
} 29. e5 {[%emt 0:00:16]} Bxe5 {[%emt 0:00:02]} 30. Bxe5 {[%emt 0:00:01]} Rxe5
{[%emt 0:00:01]} 31. Rxd4 {[%emt 0:00:01]} Rxd4 1/2-1/2

[Event "European Rapid Championship 2021"]
[Site "Katowice"]
[Date "2021.12.19"]
[Round "9.4"]
[White "Budrewicz, Krzysztof"]
[Black "Kacprzak, Karol"]
[Result "0-1"]
[ECO "E15"]
[WhiteElo "2281"]
[BlackElo "2038"]
[Annotator "ChessBase"]
[PlyCount "292"]
[EventDate "2021.12.18"]
[EventType "swiss"]
[EventCountry "POL"]
[SourceTitle "playchess.com"]
[Source "ChessBase"]
[SourceQuality "1"]
[TimeControl "900+10"]

1. d4 {[%emt 0:00:03]} Nf6 {[%emt 0:00:03]} 2. c4 {[%emt 0:00:02]} e6 {[%emt 0:
00:07]} 3. Nf3 {[%emt 0:00:03]} b6 {[%emt 0:00:46]} 4. g3 {[%emt 0:00:09]} Bb7
{[%emt 0:00:02]} 5. Bg2 {[%emt 0:00:04]} c5 {[%emt 0:00:02]} 6. d5 {[%emt 0:01:
32]} exd5 {[%emt 0:00:02]} 7. cxd5 {[%emt 0:00:30]} Bxd5 {[%emt 0:00:03]} 8.
Nc3 {[%emt 0:00:13]} Bc6 {[%emt 0:00:42]} 9. O-O {[%emt 0:00:14]} Be7 {[%emt 0:
02:15]} 10. Re1 {[%emt 0:00:28]} O-O {[%emt 0:02:13]} 11. e4 {[%emt 0:00:09]}
d6 {[%emt 0:00:02]} 12. Bf4 {[%emt 0:00:20]} Re8 {[%emt 0:00:45]} 13. a4 {
[%emt 0:00:27]} Bf8 {[%emt 0:00:22]} 14. Nd2 {[%emt 0:00:13]} Na6 {[%emt 0:01:
58]} 15. Nc4 {[%emt 0:00:24]} Nb4 {[%emt 0:00:20]} 16. Bxd6 {[%emt 0:02:43]}
Bxd6 {[%emt 0:01:07]} 17. Nxd6 {[%emt 0:00:02]} Re6 {[%emt 0:00:12]} 18. e5 {
[%emt 0:02:04]} Bxg2 {[%emt 0:01:05]} 19. Kxg2 {[%emt 0:00:02]} Ne8 {[%emt 0:
01:10]} 20. Ncb5 {[%emt 0:00:21]} Qe7 {[%emt 0:00:01]} 21. Qf3 {[%emt 0:01:36]}
Rd8 {[%emt 0:00:14]} 22. Rad1 {[%emt 0:00:33]} a6 {[%emt 0:01:45]} 23. Nf5 {
[%emt 0:00:13]} Qg5 {[%emt 0:00:30]} 24. h4 {[%emt 0:01:52]} Rxd1 {[%emt 0:00:
02]} 25. hxg5 {[%emt 0:01:31]} Rxe1 {[%emt 0:00:01]} 26. Nfd6 {[%emt 0:00:04]}
Re7 {[%emt 0:00:54]} 27. Nxe8 {[%emt 0:00:16]} Rxe8 {[%emt 0:00:00]} 28. Nd6 {
[%emt 0:00:15]} Rf8 {[%emt 0:00:01]} 29. Qc3 {[%emt 0:00:46]} Re2 {[%emt 0:00:
38]} 30. Nf5 {[%emt 0:00:12]} Nd5 {[%emt 0:00:55]} 31. Qd3 {[%emt 0:01:41]}
Rxe5 {[%emt 0:00:01]} 32. Kh3 {[%emt 0:00:21]} Ne7 {[%emt 0:00:37]} 33. Ne3 {
[%emt 0:00:17]} Rxg5 {[%emt 0:00:43]} 34. Qxa6 {[%emt 0:00:01]} Rg6 {[%emt 0:
00:12]} 35. Qb7 {[%emt 0:00:08]} Re6 {[%emt 0:00:02]} 36. Nc4 {[%emt 0:00:10]}
Nc8 {[%emt 0:00:02]} 37. Kg2 {[%emt 0:00:06]} Nd6 {[%emt 0:00:09]} 38. Nxd6 {
[%emt 0:00:14]} Rxd6 {[%emt 0:00:01]} 39. Qc7 {[%emt 0:00:17]} Re6 {[%emt 0:00:
07]} 40. b3 {[%emt 0:00:03]} h6 {[%emt 0:00:03]} 41. Qb7 {[%emt 0:00:09]} Rd8 {
[%emt 0:00:10]} 42. f4 {[%emt 0:00:47]} Rd2+ {[%emt 0:00:16]} 43. Kh3 {[%emt 0:
00:01]} Rd3 {[%emt 0:00:04]} 44. a5 {[%emt 0:00:11]} bxa5 {[%emt 0:00:21]} 45.
Qc8+ {[%emt 0:00:02]} Kh7 {[%emt 0:00:04]} 46. Qxc5 {[%emt 0:00:01]} g6 {
[%emt 0:00:52]} 47. f5 {[%emt 0:00:29]} Rf6 {[%emt 0:00:37]} 48. fxg6+ {
[%emt 0:00:24]} Rxg6 {[%emt 0:00:02]} 49. Qf5 {[%emt 0:00:22]} Rdxg3+ {[%emt 0:
00:10]} 50. Kh2 {[%emt 0:00:01]} Kg8 {[%emt 0:00:15]} 51. Qxa5 {[%emt 0:00:18]}
Rxb3 {[%emt 0:00:14]} 52. Qd8+ {[%emt 0:00:04]} Kh7 {[%emt 0:00:11]} 53. Qd5 {
[%emt 0:00:09]} Rb2+ {[%emt 0:00:01]} 54. Kh1 {[%emt 0:00:05]} Rf2 {[%emt 0:00:
05]} 55. Qe5 {[%emt 0:00:11]} Rff6 {[%emt 0:00:24]} 56. Qe4 {[%emt 0:00:01]}
Kg7 {[%emt 0:00:05]} 57. Qe5 {[%emt 0:00:01]} Rg5 {[%emt 0:00:01]} 58. Qd4 {
[%emt 0:00:01]} Kg6 {[%emt 0:00:09]} 59. Qe4+ {[%emt 0:00:01]} Rff5 {[%emt 0:
00:21]} 60. Kh2 {[%emt 0:00:01]} Kg7 {[%emt 0:00:05]} 61. Qd4+ {[%emt 0:00:01]}
Kg6 {[%emt 0:00:08]} 62. Qe4 {[%emt 0:00:04]} Kg7 {[%emt 0:00:14]} 63. Qd4+ {
[%emt 0:00:01]} Rf6 {[%emt 0:00:07]} 64. Kh1 {[%emt 0:00:01]} Rgg6 {[%emt 0:00:
05]} 65. Kh2 {[%emt 0:00:02]} Kh7 {[%emt 0:00:01]} 66. Qe4 {[%emt 0:00:01]} Re6
{[%emt 0:00:05]} 67. Qf5 {[%emt 0:00:01]} Kg8 {[%emt 0:00:03]} 68. Qd3 {
[%emt 0:00:02]} Re5 {[%emt 0:00:12]} 69. Qd8+ {[%emt 0:00:02]} Kh7 {[%emt 0:00:
04]} 70. Qd1 {[%emt 0:00:08]} Rf5 {[%emt 0:00:32]} 71. Qe2 {[%emt 0:00:06]}
Rfg5 {[%emt 0:00:21]} 72. Kh3 {[%emt 0:00:44]} Re6 {[%emt 0:00:15]} 73. Qd3+ {
[%emt 0:00:00]} Kg8 {[%emt 0:00:04]} 74. Qd8+ {[%emt 0:00:01]} Kg7 {[%emt 0:00:
04]} 75. Qd4+ {[%emt 0:00:02]} Kh7 {[%emt 0:00:03]} 76. Qd3+ {[%emt 0:00:01]}
Rgg6 {[%emt 0:00:01]} 77. Kh2 {[%emt 0:00:10]} Re5 {[%emt 0:00:15]} 78. Qf3 {
[%emt 0:00:02]} Kg8 {[%emt 0:00:32]} 79. Qa8+ {[%emt 0:00:10]} Kg7 {[%emt 0:00:
07]} 80. Qf3 {[%emt 0:00:03]} Rf6 {[%emt 0:00:09]} 81. Qg4+ {[%emt 0:00:09]}
Kh7 {[%emt 0:00:08]} 82. Qd1 {[%emt 0:00:58]} Rf2+ {[%emt 0:00:20]} 83. Kg3 {
[%emt 0:00:09]} Rfe2 {[%emt 0:00:03]} 84. Qd3+ {[%emt 0:00:03]} Kg7 {[%emt 0:
00:07]} 85. Qd4 {[%emt 0:00:00]} R2e4 {[%emt 0:00:01]} 86. Qa1 {[%emt 0:00:16]}
h5 {[%emt 0:00:01]} 87. Qb2 {[%emt 0:00:10]} Kg6 {[%emt 0:00:05]} 88. Qc2 {
[%emt 0:00:05]} Kg5 {[%emt 0:00:10]} 89. Qd2+ {[%emt 0:00:02]} Re3+ {[%emt 0:
00:01]} 90. Kh2 {[%emt 0:00:04]} f5 {[%emt 0:00:11]} 91. Qd8+ {[%emt 0:00:04]}
Re7 {[%emt 0:00:01]} 92. Qg8+ {[%emt 0:00:16]} Kf4 {[%emt 0:00:02]} 93. Qc4+ {
[%emt 0:00:01]} R3e4 {[%emt 0:00:23]} 94. Qc1+ {[%emt 0:00:02]} Re3 {[%emt 0:
00:20]} 95. Qf1+ {[%emt 0:00:12]} Kg5 {[%emt 0:00:08]} 96. Qg1+ {[%emt 0:00:01]
} Kf6 {[%emt 0:00:15]} 97. Qa1+ {[%emt 0:00:03]} Kg6 {[%emt 0:00:07]} 98. Qg1+
{[%emt 0:00:04]} Kf6 {[%emt 0:00:23]} 99. Qa1+ {[%emt 0:00:04]} R7e5 {[%emt 0:
00:04]} 100. Qd4 {[%emt 0:00:07]} Kg5 {[%emt 0:00:15]} 101. Qd8+ {[%emt 0:00:
03]} Kg4 {[%emt 0:00:15]} 102. Qd4+ {[%emt 0:00:11]} f4 {[%emt 0:00:21]} 103.
Qd7+ {[%emt 0:00:01]} Kf3 {[%emt 0:00:17]} 104. Qc6+ {[%emt 0:00:23]} Kf2 {
[%emt 0:00:15]} 105. Qb6 {[%emt 0:00:39]} Kf1 {[%emt 0:00:08]} 106. Qb1+ Kf2 {
[%emt 0:00:14]} 107. Qb4 {[%emt 0:00:48]} f3 {[%emt 0:00:08]} 108. Qd2+ {
[%emt 0:00:21]} Re2 {[%emt 0:00:01]} 109. Qd4+ {[%emt 0:00:01]} R5e3 {[%emt 0:
00:12]} 110. Qh4+ {[%emt 0:00:13]} Kf1+ {[%emt 0:00:02]} 111. Kh1 {[%emt 0:00:
01]} f2 {[%emt 0:00:20]} 112. Kh2 {[%emt 0:01:03]} Rd2 {[%emt 0:00:13]} 113.
Qc4+ {[%emt 0:00:35]} Ke1 {[%emt 0:00:06]} 114. Qc1+ {[%emt 0:00:04]} Ke2 {
[%emt 0:00:01]} 115. Qc4+ {[%emt 0:00:11]} Rdd3 {[%emt 0:00:13]} 116. Qa2+ {
[%emt 0:00:08]} Ke1 {[%emt 0:00:22]} 117. Qa1+ {[%emt 0:00:24]} Rd1 {[%emt 0:
00:09]} 118. Qa5+ {[%emt 0:00:01]} Ke2 {[%emt 0:00:12]} 119. Qxh5+ {[%emt 0:00:
09]} Kd2 {[%emt 0:00:08]} 120. Qa5+ {[%emt 0:00:08]} Kd3 {[%emt 0:00:09]} 121.
Qa3+ {[%emt 0:00:04]} Ke4 {[%emt 0:00:11]} 122. Qa4+ {[%emt 0:00:01]} Rd4 {
[%emt 0:00:03]} 123. Qc2+ {[%emt 0:00:08]} Kf3 {[%emt 0:00:08]} 124. Qf5+ {
[%emt 0:00:12]} Rf4 {[%emt 0:00:17]} 125. Qd5+ {[%emt 0:00:02]} Ree4 {[%emt 0:
00:11]} 126. Qd1+ {[%emt 0:00:03]} Ke3 {[%emt 0:00:03]} 127. Qc1+ {[%emt 0:00:
03]} Kd3 {[%emt 0:00:02]} 128. Qd1+ {[%emt 0:00:08]} Kc3 {[%emt 0:00:03]} 129.
Qc1+ {[%emt 0:00:01]} Kd4 {[%emt 0:00:01]} 130. Qd2+ {[%emt 0:00:06]} Kc4 {
[%emt 0:00:06]} 131. Qc2+ {[%emt 0:00:01]} Kd5 {[%emt 0:00:01]} 132. Qd3+ {
[%emt 0:00:17]} Ke5 {[%emt 0:00:28]} 133. Qc3+ {[%emt 0:00:01]} Kf5 {[%emt 0:
00:23]} 134. Qc5+ {[%emt 0:00:06]} Kg4 {[%emt 0:00:20]} 135. Qc8+ {[%emt 0:00:
01]} Rf5 {[%emt 0:00:07]} 136. Qg8+ {[%emt 0:00:09]} Kf3 {[%emt 0:00:14]} 137.
Qb3+ {[%emt 0:00:38]} Re3 {[%emt 0:00:13]} 138. Qd1+ {[%emt 0:00:08]} Ke4 {
[%emt 0:00:09]} 139. Qc2+ {[%emt 0:00:10]} Ke5 {[%emt 0:00:12]} 140. Qc5+ {
[%emt 0:00:04]} Ke4 {[%emt 0:00:05]} 141. Qc2+ {[%emt 0:00:03]} Rd3 {[%emt 0:
00:10]} 142. Qe2+ {[%emt 0:00:09]} Kd4 {[%emt 0:00:12]} 143. Qg4+ {[%emt 0:00:
02]} Ke5 {[%emt 0:00:02]} 144. Qe2+ {[%emt 0:00:01]} Kf6 {[%emt 0:00:02]} 145.
Qb2+ {[%emt 0:00:12]} Kg6 {[%emt 0:00:16]} 146. Qc1 {[%emt 0:02:27]} Rh3+ {
[%emt 0:00:14]} 0-1